fUST/lending_fUST_20250625
["ID","MTS","AMOUNT","RATE_DAILY","PERIOD"]
[367537965,1750849846800,-460.0,0.0001707,2]
[367537966,1750849846809,-460.0,0.0001707,2]
[367537967,1750849846818,-460.0,0.0001707,2]
[367537968,1750849846830,-460.0,0.0001707,2]
[367537969,1750849846840,-460.0,0.0001707,2]
[367537970,1750849846848,-505.46,0.0001707,2]
[367537971,1750849846857,-1218.56,0.0001707,2]
[367537972,1750849846866,-356.62,0.0001707,2]
[367537973,1750849846875,-460.0,0.0001707,2]
[367537974,1750849846884,-460.0,0.0001707,2]
[367537975,1750849846893,-792.96,0.0001707,2]
[367537976,1750849846902,-460.04,0.0001707,2]
[367537977,1750849846911,-460.0,0.0001707,2]
[367537978,1750849846921,-460.0,0.0001707,2]
[367537979,1750849846930,-460.0,0.0001707,2]
[367537980,1750849846938,-460.0,0.0001707,2]
[367537981,1750849846947,-602.28,0.0001707,2]
[367537982,1750849846956,-460.0,0.0001707,2]
[367537983,1750849846967,-460.0,0.0001707,2]
[367537984,1750849846976,-460.0,0.0001707,2]
[367537985,1750849846986,-485.47837267,0.0001707,2]
[367537986,1750849846995,-460.0,0.0001707,2]
[367537987,1750849847003,-460.0,0.0001707,2]
[367537988,1750849847013,-460.0,0.0001707,2]
[367537989,1750849847022,-196.86,0.0001707,2]
[367537990,1750849847031,-460.0,0.0001707,2]
[367537991,1750849847040,-460.0,0.0001707,2]
[367537993,1750849847050,-460.0,0.0001707,2]
[367537994,1750849847059,-460.0,0.0001707,2]
[367537996,1750849847069,-460.0,0.0001707,2]
[367537997,1750849847078,-460.0,0.0001707,2]
[367537999,1750849847088,-251.30795469,0.0001707,2]
[367538001,1750849847100,-765.21204531,0.0001707,2]
[367538003,1750849847110,-460.0,0.0001707,2]
[367538005,1750849847120,-460.0,0.0001707,2]
[367538007,1750849847129,-460.0,0.0001707,2]
[367538009,1750849847144,-460.0,0.0001707,2]
[367538011,1750849847155,-1208.72,0.0001707,2]
[367538013,1750849847164,-956.38,0.0001707,2]
[367538015,1750849847174,-460.0,0.0001707,2]
[367538017,1750849847184,-460.0,0.0001707,2]
[367538019,1750849847193,-460.0,0.0001707,2]
[367538021,1750849847203,-187.20951857,0.0001707,2]
[367538023,1750849847212,-460.0,0.00017071,2]
[367538025,1750849847221,-460.0,0.00017071,2]
[367538027,1750849847232,-460.0,0.00017071,2]
[367538029,1750849847241,-460.0,0.00017071,2]
[367538031,1750849847250,-420.0,0.00017071,2]
[367538032,1750849847259,-460.0,0.00017071,2]
[367538033,1750849847268,-460.0,0.00017071,2]
[367538034,1750849847277,-460.0,0.00017071,2]
[367538035,1750849847286,-460.0,0.00017071,2]
[367538036,1750849847295,-460.0,0.00017071,2]
[367538037,1750849847304,-1000.0,0.000173,2]
[367538038,1750849847313,-211.16157201,0.00017305,2]
[367538039,1750849847322,-500.0,0.00017305,2]
[367538040,1750849847331,-500.0,0.00017305,2]
[367538041,1750849847340,-500.0,0.00017305,2]
[367538042,1750849847349,-500.0,0.00017305,2]
[367538043,1750849847359,-500.0,0.00017339,2]
[367538044,1750849847368,-500.0,0.00017339,2]
[367538045,1750849847377,-1104.52,0.00017343,2]
[367538046,1750849847386,-352.66,0.00017343,2]
[367538047,1750849847395,-259.68,0.00017343,2]
[367538048,1750849847405,-460.0,0.00017344,2]
[367538049,1750849847414,-177.45,0.00017344,2]
[367538050,1750849847423,-460.0,0.00017344,2]
[367538051,1750849847432,-460.0,0.00017344,2]
[367538052,1750849847441,-160.49667848,0.00017344,2]
[367538053,1750849847453,-299.50332152,0.00017344,2]
[367538054,1750849847464,-232.91,0.00017344,2]
[367538055,1750849847473,-460.0,0.00017344,2]
[367538056,1750849847483,-582.97,0.00017344,2]
[367538057,1750849847493,-460.0,0.00017344,2]
[367538058,1750849847502,-367.19657566,0.00017344,2]
[367538059,1750849847510,-460.0,0.00017344,2]
[367538060,1750849847523,-460.0,0.00017344,2]
[367538061,1750849847532,-460.0,0.00017344,2]
[367538062,1750849847542,-460.0,0.00017344,2]
[367538063,1750849847551,-278.64056621,0.00017344,2]
[367538064,1750849847645,-147.74943379,0.00017344,2]
[367538065,1750849847655,-460.0,0.00017344,2]
[367538066,1750849847665,-460.0,0.00017344,2]
[367538068,1750849847674,-460.0,0.00017344,2]
[367538069,1750849847683,-460.0,0.00017344,2]
[367538071,1750849847693,-463.0993919,0.00017344,2]
[367538073,1750849847702,-460.0,0.00017344,2]
[367538075,1750849847712,-153.52418324,0.00017344,2]
[367538076,1750849847734,-1453.70310015,0.00016628,2]
[367538077,1750849847745,-313.326558,0.00016628,2]
[367538078,1750849847757,-392.19069161,0.00016628,2]
[367538079,1750849847768,-2840.77965024,0.00016628,2]
[367538080,1750849847778,-306.47581676,0.00017344,2]
[367538081,1750849847787,-460.0,0.00017344,2]
[367538082,1750849847797,-1136.36,0.00017344,2]
[367538083,1750849847807,-460.0,0.00017344,2]
[367538084,1750849847816,-106.3011203,0.00017344,2]
[367538085,1750849847829,-480.45944294,0.00017344,2]
[367538086,1750849847838,-460.0,0.00017344,2]
[367538087,1750849847847,-718.31,0.00017344,2]
[367538088,1750849847856,-395.27,0.00017344,2]
[367538089,1750849847866,-460.0,0.00017344,2]
[367538090,1750849847875,-460.0,0.00017344,2]
[367538091,1750849847885,-460.0,0.00017344,2]
[367538092,1750849847895,-1429.27715536,0.00017344,2]
[367538093,1750849847906,-126.79284464,0.00017344,2]
[367538094,1750849847915,-465.94879445,0.00017344,2]
[367538095,1750849847925,-460.0,0.00017344,2]
[367538096,1750849847934,-460.0,0.00017344,2]
[367538097,1750849847943,-1289.45,0.00017344,2]
[367538098,1750849847952,-460.0,0.00017344,2]
[367538099,1750849847962,-1319.16,0.00017344,2]
[367538100,1750849847972,-2271.61,0.00017344,2]
[367538101,1750849847983,-460.0,0.00017344,2]
[367538102,1750849847993,-478.27,0.00017344,2]
[367538103,1750849848002,-460.0,0.00017344,2]
[367538104,1750849848012,-2064.43,0.00017344,2]
[367538105,1750849848021,-460.0,0.00017344,2]
[367538106,1750849848030,-460.0,0.00017344,2]
[367538107,1750849848040,-445.62,0.00017344,2]
[367538108,1750849848050,-599.01781491,0.00017344,2]
[367538447,1750850097149,9375.28984603,0.00015795,2]
[367538448,1750850097675,15524.71015397,0.00015795,2]
[367538449,1750850184923,393.1028661,0.00015795,2]
[367538450,1750850290124,168.81351378,0.00015807,2]
[367538455,1750850749123,152.270095,0.0002254,30]
[367538456,1750850756401,460.0,0.0002553,60]
[367538457,1750850772534,164.961578,0.00013699,2]
[367538461,1750850878649,-4976.0,0.00016292,2]
[367538488,1750851016000,3748.41188815,0.000161,2]
[367538489,1750851016022,1251.58811185,0.000161,2]
[367538526,1750851032731,-3364.48892838,0.00016527,2]
[367538539,1750851032839,-1635.51107162,0.00016527,2]
[367538541,1750851032848,-1071.13678352,0.00016694,2]
[367538543,1750851032857,-1200.0,0.00016783,2]
[367538545,1750851032867,-1200.0,0.00016783,2]
[367538547,1750851032876,-300.0,0.00016784,2]
[367538549,1750851032885,-300.0,0.00016784,2]
[367538551,1750851032894,-230.84,0.00016784,3]
[367538553,1750851032903,-692.52,0.00016784,3]
[367538556,1750851032912,-2079.17,0.00016785,3]
[367538559,1750851032921,-1039.58,0.00016785,3]
[367538562,1750851032930,-519.79,0.00016785,3]
[367538565,1750851032940,-779.72,0.00016785,3]
[367538568,1750851032948,-259.9,0.00016786,3]
[367538571,1750851032958,-230.26329876,0.00016786,2]
[367538574,1750851032969,-1017.86666302,0.00016786,2]
[367538614,1750851038847,-162.09041682,0.00016785,2]
[367538616,1750851038857,-500.0,0.00016785,2]
[367538618,1750851038867,-538.99832071,0.00016785,2]
[367538620,1750851038876,-500.0,0.00016785,2]
[367538622,1750851038886,-460.09948902,0.00016785,2]
[367538624,1750851038896,-28021.39361032,0.00016786,2]
[367538626,1750851038905,-252.16,0.0001679,2]
[367538628,1750851038915,-486.91930981,0.0001679,2]
[367538630,1750851038924,-460.0,0.0001679,2]
[367538632,1750851038934,-460.0,0.0001679,2]
[367538634,1750851038944,-460.0,0.0001679,2]
[367538636,1750851038953,-1405.31,0.0001679,2]
[367538638,1750851038963,-460.0,0.0001679,2]
[367538640,1750851038973,-460.0,0.0001679,2]
[367538642,1750851038982,-460.0,0.0001679,2]
[367538644,1750851038991,-480.46248933,0.0001679,2]
[367538646,1750851039001,-460.0,0.0001679,2]
[367538648,1750851039012,-460.0,0.0001679,2]
[367538650,1750851039022,-460.0,0.0001679,2]
[367538652,1750851039032,-460.0,0.0001679,2]
[367538654,1750851039042,-460.0,0.0001679,2]
[367538656,1750851039051,-460.0,0.0001679,2]
[367538658,1750851039060,-460.0,0.0001679,2]
[367538660,1750851039070,-1767.26,0.0001679,2]
[367538662,1750851039080,-460.0,0.0001679,2]
[367538664,1750851039090,-460.0,0.0001679,2]
[367538666,1750851039100,-460.0,0.0001679,2]
[367538668,1750851039111,-460.0,0.0001679,2]
[367538670,1750851039121,-460.0,0.00016791,2]
[367538672,1750851039134,-460.0,0.00016791,2]
[367538674,1750851039143,-467.51395587,0.00016791,2]
[367538676,1750851039153,-333.21008733,0.00016791,2]
[367538679,1750851039162,-460.0,0.00016791,2]
[367538681,1750851039171,-460.0,0.00016791,2]
[367538683,1750851039181,-460.0,0.00016791,2]
[367538685,1750851039190,-460.0,0.00016791,2]
[367538687,1750851039199,-460.0,0.00016791,2]
[367538689,1750851039209,-460.0,0.00016791,2]
[367538691,1750851039220,-460.0,0.00016791,2]
[367538693,1750851039229,-460.0,0.00016791,2]
[367538695,1750851039239,-1535.4,0.00016791,2]
[367538697,1750851039249,-460.0,0.00016791,2]
[367538699,1750851039258,-460.0,0.00016791,2]
[367538701,1750851039267,-1311.6,0.00016791,2]
[367538703,1750851039277,-1891.27,0.00016791,2]
[367538705,1750851039286,-460.0,0.00016791,2]
[367538707,1750851039295,-460.0,0.00016791,2]
[367538709,1750851039305,-768.97,0.00016791,2]
[367538711,1750851039315,-460.0,0.00016791,2]
[367538713,1750851039324,-460.0,0.00016791,2]
[367538715,1750851039333,-460.0,0.00016791,2]
[367538717,1750851039343,-460.0,0.00016791,2]
[367538719,1750851039352,-460.0,0.00016791,2]
[367538721,1750851039361,-1364.97,0.00016791,2]
[367538723,1750851039370,-460.0,0.00016791,2]
[367538725,1750851039379,-460.0,0.00016791,2]
[367538727,1750851039388,-460.0,0.00016791,2]
[367538729,1750851039398,-460.0,0.00016791,2]
[367538731,1750851039407,-513.01,0.00016791,2]
[367538733,1750851039417,-460.0,0.00016792,2]
[367538735,1750851039426,-347.32576456,0.00016792,2]
[367538738,1750851039439,-460.0,0.00016792,2]
[367538740,1750851039449,-460.0,0.00016792,2]
[367538742,1750851039458,-460.0,0.00016792,2]
[367538744,1750851039468,-460.0,0.00016792,2]
[367538746,1750851039478,-192.89041772,0.00016792,2]
[367538748,1750851039487,-460.0,0.00016792,2]
[367538750,1750851039497,-460.0,0.00016792,2]
[367538752,1750851039506,-343.66923516,0.00016792,2]
[367538754,1750851039516,-290.46774552,0.00016792,2]
[367538756,1750851039526,-500.0,0.00016792,2]
[367538758,1750851039536,-500.0,0.00016792,2]
[367538760,1750851039546,-500.0,0.00016792,2]
[367538762,1750851039555,-500.0,0.00016792,2]
[367538764,1750851039565,-265.05972078,0.00016792,2]
[367538766,1750851039574,-500.0,0.00016792,2]
[367538768,1750851039584,-500.0,0.00016792,2]
[367538770,1750851039594,-500.0,0.00016792,2]
[367538772,1750851039604,-650.21716829,0.00016792,2]
[367538774,1750851039613,-460.0,0.00016793,2]
[367538776,1750851039622,-460.0,0.00016793,2]
[367538779,1750851039632,-460.0,0.00016793,2]
[367538781,1750851039641,-462.64775211,0.00016793,2]
[367538783,1750851039650,-460.0,0.00016793,2]
[367538785,1750851039660,-460.0,0.00016793,2]
[367538787,1750851039669,-582.45253519,0.00016793,2]
[367538789,1750851039678,-460.0,0.00016793,2]
[367538791,1750851039688,-438.77245709,0.00016793,2]
[367538793,1750851039697,-523.35617931,0.00016793,2]
[367538795,1750851039706,-460.0,0.00016793,2]
[367538797,1750851039715,-460.0,0.00016793,2]
[367538799,1750851039724,-460.0,0.00016793,2]
[367538801,1750851039733,-460.0,0.00016793,2]
[367538803,1750851039743,-488.53641425,0.00016793,2]
[367538805,1750851039753,-253.95590976,0.00016793,2]
[367538807,1750851039763,-460.0,0.00016793,2]
[367538809,1750851039772,-460.0,0.00016793,2]
[367538811,1750851039780,-460.0,0.00016793,2]
[367538813,1750851039789,-460.0,0.00016793,2]
[367538815,1750851039799,-346.74669501,0.00016793,2]
[367538817,1750851039808,-460.0,0.00016793,2]
[367538819,1750851039817,-460.0,0.00016793,2]
[367538821,1750851039827,-460.0,0.00016793,2]
[367538823,1750851039836,-460.0,0.00016793,2]
[367538825,1750851039845,-460.0,0.00016793,2]
[367538827,1750851039854,-500.0,0.00016793,2]
[367538829,1750851039864,-500.0,0.00016793,2]
[367538831,1750851039876,-574.97,0.00016793,2]
[367538832,1750851039885,-460.0,0.00016793,2]
[367538833,1750851039894,-500.0,0.00016793,2]
[367538834,1750851039903,-500.0,0.00016793,2]
[367538835,1750851039912,-500.0,0.00016793,2]
[367538836,1750851039922,-460.0,0.00016793,2]
[367538837,1750851039931,-460.0,0.00016793,2]
[367538838,1750851039940,-460.0,0.00016793,2]
[367538839,1750851039950,-402.6225621,0.00016793,2]
[367538840,1750851039960,-460.79084207,0.00016793,2]
[367538841,1750851039971,-460.0,0.00016793,2]
[367538842,1750851039980,-460.17648486,0.00016793,2]
[367538843,1750851039989,-460.0,0.00016793,2]
[367538844,1750851039999,-460.0,0.00016793,2]
[367538845,1750851040008,-460.0,0.00016793,2]
[367538846,1750851040017,-460.0,0.00016793,2]
[367538847,1750851040027,-460.0,0.00016793,2]
[367538848,1750851040036,-394.87497384,0.00016793,2]
[367538850,1750851040045,-460.0,0.00016793,2]
[367538852,1750851040055,-460.0,0.00016793,2]
[367538854,1750851040064,-460.0,0.00016793,2]
[367538856,1750851040073,-460.0,0.00016793,2]
[367538877,1750851040256,-314.65,0.00016793,2]
[367538879,1750851040267,-460.0,0.00016793,2]
[367538881,1750851040277,-460.0,0.00016793,2]
[367538883,1750851040286,-460.0,0.00016793,2]
[367538885,1750851040295,-460.0,0.00016793,2]
[367538887,1750851040304,-231.34747492,0.00016793,2]
[367538889,1750851040313,-460.0,0.00016793,2]
[367538891,1750851040322,-354.29571344,0.00016793,2]
[367538893,1750851040331,-460.0,0.00016793,2]
[367538895,1750851040340,-460.0,0.00016793,2]
[367538897,1750851040350,-460.0,0.00016793,2]
[367538899,1750851040359,-460.0,0.00016793,2]
[367538901,1750851040368,-460.78629798,0.00016793,2]
[367538903,1750851040377,-460.0,0.00016793,2]
[367538905,1750851040387,-460.0,0.00016793,2]
[367538907,1750851040396,-460.0,0.00016793,2]
[367538909,1750851040405,-460.0,0.00016793,2]
[367538911,1750851040414,-460.0,0.00016793,2]
[367538913,1750851040423,-460.0,0.00016793,2]
[367538915,1750851040432,-460.0,0.00016793,2]
[367538917,1750851040441,-460.0,0.00016793,2]
[367538919,1750851040450,-460.0,0.00016793,2]
[367538921,1750851040459,-514.66,0.00016793,2]
[367538923,1750851040469,-460.0,0.00016793,2]
[367538925,1750851040478,-460.0,0.00016793,2]
[367538927,1750851040487,-460.0,0.00016793,2]
[367538929,1750851040496,-462.90334112,0.00016793,2]
[367538931,1750851040505,-460.0,0.00016793,2]
[367538933,1750851040514,-1196.13,0.00016793,2]
[367538935,1750851040523,-460.0,0.00016793,2]
[367538937,1750851040532,-460.0,0.00016793,2]
[367538939,1750851040541,-460.0,0.00016793,2]
[367538941,1750851040550,-460.0,0.00016793,2]
[367538943,1750851040559,-389.42552778,0.00016793,2]
[367538945,1750851040568,-460.0,0.00016793,2]
[367538947,1750851040577,-460.0,0.00016793,2]
[367538949,1750851040587,-460.0,0.00016793,2]
[367538951,1750851040596,-460.0,0.00016793,2]
[367538953,1750851040605,-646.02,0.00016793,2]
[367538955,1750851040615,-621.93,0.00016793,2]
[367538957,1750851040624,-449.98992042,0.00016793,2]
[367538959,1750851040634,-460.0,0.00016793,2]
[367538961,1750851040643,-460.0,0.00016793,2]
[367538963,1750851040653,-460.0,0.00016793,2]
[367538965,1750851040662,-460.0,0.00016793,2]
[367538967,1750851040671,-460.0,0.00016793,2]
[367538969,1750851040680,-460.0,0.00016793,2]
[367538971,1750851040690,-460.0,0.00016793,2]
[367538973,1750851040699,-460.0,0.00016793,2]
[367538975,1750851040708,-635.35,0.00016793,2]
[367538978,1750851040727,-490.49139861,0.00016793,2]
[367538980,1750851040739,-460.0,0.00016794,2]
[367538982,1750851040749,-460.0,0.00016794,2]
[367538984,1750851040759,-460.0,0.00016794,2]
[367538986,1750851040769,-460.0,0.00016794,2]
[367538988,1750851040779,-460.0,0.00016794,2]
[367538990,1750851040789,-460.0,0.00016794,2]
[367538992,1750851040799,-460.0,0.00016794,2]
[367538994,1750851040809,-460.0,0.00016794,2]
[367538996,1750851040819,-460.0,0.00016794,2]
[367538999,1750851040829,-460.0,0.00016794,2]
[367539001,1750851040839,-460.0,0.00016794,2]
[367539003,1750851040849,-460.0,0.00016794,2]
[367539005,1750851040860,-460.0,0.00016794,2]
[367539007,1750851040869,-460.0,0.00016794,2]
[367539009,1750851040879,-465.831738,0.00016794,2]
[367539011,1750851040889,-182.75399511,0.00016794,2]
[367539013,1750851040899,-417.87977399,0.00016794,2]
[367539015,1750851040909,-460.0,0.00016794,2]
[367539017,1750851040918,-460.0,0.00016794,2]
[367539019,1750851040928,-465.76495367,0.00016794,2]
[367539021,1750851040938,-460.0,0.00016794,2]
[367539023,1750851040948,-460.0,0.00016794,2]
[367539025,1750851040958,-460.0,0.00016794,2]
[367539027,1750851040968,-460.0,0.00016794,2]
[367539030,1750851040977,-460.0,0.00016794,2]
[367539032,1750851040988,-460.0,0.00016794,2]
[367539034,1750851040997,-460.0,0.00016794,2]
[367539036,1750851041007,-460.0,0.00016794,2]
[367539038,1750851041016,-460.0,0.00016794,2]
[367539040,1750851041025,-460.0,0.00016794,2]
[367539042,1750851041035,-460.0,0.00016794,2]
[367539044,1750851041044,-460.0,0.00016794,2]
[367539046,1750851041053,-460.0,0.00016794,2]
[367539048,1750851041063,-460.0,0.00016794,2]
[367539050,1750851041072,-264.3309134,0.00016794,2]
[367539052,1750851041083,-460.0,0.00016794,2]
[367539054,1750851041092,-460.0,0.00016794,2]
[367539056,1750851041102,-460.0,0.00016794,2]
[367539058,1750851041112,-466.79,0.00016794,2]
[367539060,1750851041121,-460.33,0.00016794,2]
[367539062,1750851041133,-460.0,0.00016794,2]
[367539064,1750851041143,-460.0,0.00016794,2]
[367539066,1750851041152,-460.0,0.00016794,2]
[367539068,1750851041161,-460.0,0.00016794,2]
[367539070,1750851041171,-586.93,0.00016794,2]
[367539072,1750851041180,-460.0,0.00016794,2]
[367539074,1750851041190,-460.0,0.00016794,2]
[367539076,1750851041199,-460.0,0.00016794,2]
[367539078,1750851041209,-460.0,0.00016794,2]
[367539080,1750851041219,-460.0,0.00016794,2]
[367539082,1750851041228,-460.0,0.00016794,2]
[367539084,1750851041238,-460.0,0.00016794,2]
[367539086,1750851041247,-460.0,0.00016794,2]
[367539089,1750851041257,-460.0,0.00016794,2]
[367539091,1750851041267,-460.0,0.00016794,2]
[367539093,1750851041276,-460.0,0.00016794,2]
[367539095,1750851041286,-460.0,0.00016794,2]
[367539097,1750851041294,-460.0,0.00016794,2]
[367539099,1750851041304,-460.0,0.00016794,2]
[367539101,1750851041313,-460.0,0.00016794,2]
[367539103,1750851041322,-460.0,0.00016794,2]
[367539105,1750851041332,-460.0,0.00016794,2]
[367539107,1750851041341,-460.0,0.00016794,2]
[367539109,1750851041351,-261.91938211,0.00016794,2]
[367539111,1750851041360,-460.0,0.00016794,2]
[367539113,1750851041370,-460.0,0.00016794,2]
[367539115,1750851041379,-460.0,0.00016794,2]
[367539117,1750851041388,-460.0,0.00016794,2]
[367539119,1750851041397,-460.0,0.00016794,2]
[367539121,1750851041407,-529.00816846,0.00016794,2]
[367539123,1750851041416,-460.0,0.00016794,2]
[367539125,1750851041426,-460.0,0.00016794,2]
[367539127,1750851041436,-460.0,0.00016794,2]
[367539129,1750851041446,-460.0,0.00016794,2]
[367539131,1750851041455,-309.43631587,0.00016794,2]
[367539133,1750851041464,-460.0,0.00016794,2]
[367539135,1750851041473,-460.0,0.00016794,2]
[367539137,1750851041483,-460.0,0.00016794,2]
[367539139,1750851041493,-460.0,0.00016794,2]
[367539141,1750851041502,-460.0,0.00016794,2]
[367539143,1750851041511,-500.0,0.00016794,2]
[367539145,1750851041520,-321.15312975,0.00016794,2]
[367539147,1750851041529,-585.51,0.00016794,2]
[367539149,1750851041539,-460.0,0.00016794,2]
[367539151,1750851041549,-463.91863724,0.00016794,2]
[367539153,1750851041558,-460.0,0.00016794,2]
[367539155,1750851041567,-464.84536389,0.00016794,2]
[367539157,1750851041577,-460.0,0.00016794,2]
[367539159,1750851041586,-460.0,0.00016794,2]
[367539161,1750851041596,-460.0,0.00016794,2]
[367539163,1750851041605,-160.0,0.00016794,2]
[367539165,1750851041614,-460.0,0.00016794,2]
[367539167,1750851041623,-460.0,0.00016794,2]
[367539169,1750851041632,-460.0,0.00016794,2]
[367539171,1750851041642,-460.0,0.00016794,2]
[367539173,1750851041652,-460.0,0.00016794,2]
[367539175,1750851041662,-150.67399097,0.00016794,2]
[367539177,1750851041671,-460.0,0.00016794,2]
[367539180,1750851041681,-460.0,0.00016794,2]
[367539182,1750851041691,-460.0,0.00016794,2]
[367539183,1750851041700,-460.0,0.00016794,2]
[367539186,1750851041710,-460.0,0.00016794,2]
[367539188,1750851041719,-460.0,0.00016794,2]
[367539190,1750851041728,-429.04169078,0.00016794,2]
[367539192,1750851041738,-460.0,0.00016794,2]
[367539194,1750851041749,-460.0,0.00016794,2]
[367539196,1750851041759,-460.0,0.00016794,2]
[367539198,1750851041768,-480.58439964,0.00016794,2]
[367539200,1750851041777,-460.0,0.00016794,2]
[367539202,1750851041787,-460.0,0.00016794,2]
[367539204,1750851041796,-460.0,0.00016794,2]
[367539206,1750851041805,-460.0,0.00016794,2]
[367539208,1750851041814,-460.0,0.00016794,2]
[367539210,1750851041824,-460.0,0.00016794,2]
[367539212,1750851041833,-2941.91,0.00016794,2]
[367539214,1750851041842,-460.0,0.00016794,2]
[367539216,1750851041851,-460.0,0.00016794,2]
[367539218,1750851041860,-434.8146663,0.00016794,2]
[367539220,1750851041870,-460.0,0.00016794,2]
[367539222,1750851041879,-460.0,0.00016794,2]
[367539224,1750851041888,-460.0,0.00016794,2]
[367539226,1750851041897,-460.0,0.00016794,2]
[367539228,1750851041906,-460.0,0.00016794,2]
[367539230,1750851041915,-460.0,0.00016794,2]
[367539232,1750851041924,-460.0,0.00016794,2]
[367539234,1750851041933,-460.0,0.00016794,2]
[367539236,1750851041942,-460.0,0.00016794,2]
[367539238,1750851041952,-460.0,0.00016794,2]
[367539240,1750851041961,-460.0,0.00016794,2]
[367539242,1750851041971,-460.0,0.00016794,2]
[367539244,1750851041980,-460.0,0.00016794,2]
[367539246,1750851041989,-460.52266667,0.00016794,2]
[367539248,1750851041999,-483.24300921,0.00016794,2]
[367539249,1750851042008,-460.0,0.00016794,2]
[367539251,1750851042017,-460.0,0.00016794,2]
[367539254,1750851042027,-1338.26,0.00016794,2]
[367539256,1750851042037,-460.0,0.00016794,2]
[367539257,1750851042046,-460.0,0.00016794,2]
[367539259,1750851042056,-460.0,0.00016794,2]
[367539261,1750851042066,-460.0,0.00016794,2]
[367539263,1750851042075,-460.0,0.00016794,2]
[367539265,1750851042087,-556.79940214,0.00016794,2]
[367539268,1750851042096,-460.0,0.00016794,2]
[367539270,1750851042106,-460.0,0.00016794,2]
[367539272,1750851042115,-460.0,0.00016794,2]
[367539274,1750851042126,-609.95339097,0.00016794,2]
[367539276,1750851042137,-460.0,0.00016794,2]
[367539278,1750851042147,-460.0,0.00016794,2]
[367539280,1750851042157,-460.0,0.00016794,2]
[367539282,1750851042169,-460.0,0.00016795,2]
[367539283,1750851042178,-460.0,0.00016795,2]
[367539285,1750851042187,-460.0,0.00016795,2]
[367539287,1750851042196,-460.0,0.00016795,2]
[367539289,1750851042205,-460.0,0.00016795,2]
[367539291,1750851042216,-304.03737758,0.00016795,2]
[367539293,1750851042225,-460.0,0.00016795,2]
[367539296,1750851042235,-460.0,0.00016795,2]
[367539297,1750851042244,-460.0,0.00016795,2]
[367539299,1750851042254,-460.0,0.00016795,2]
[367539302,1750851042263,-460.0,0.00016795,2]
[367539303,1750851042272,-460.0,0.00016795,2]
[367539305,1750851042282,-460.0,0.00016795,2]
[367539307,1750851042291,-460.0,0.00016795,2]
[367539309,1750851042300,-460.0,0.00016795,2]
[367539311,1750851042310,-460.0,0.00016795,2]
[367539313,1750851042319,-254.894517,0.00016795,2]
[367539315,1750851042329,-460.0,0.00016795,2]
[367539317,1750851042338,-477.55,0.00016795,2]
[367539319,1750851042347,-460.85140611,0.00016795,2]
[367539321,1750851042356,-460.0,0.00016795,2]
[367539322,1750851042366,-460.0,0.00016795,2]
[367539323,1750851042375,-460.48002916,0.00016795,2]
[367539324,1750851042384,-460.0,0.00016795,2]